bitfinex/quotes_SOLUSD_20250313
["timestamp","ask_amount","ask_price","bid_price","bid_amount"]
[1741881828499,28.04614247,124.47,124.46,0.03]
[1741881830187,32.0716965,124.47,124.46,0.03]
[1741881830805,43.26264323,124.47,124.46,0.03]
[1741881831498,49.21933677,124.47,124.46,22.71986579]
[1741881831889,9.98224757,124.47,124.45,8.0353]
[1741881832099,9.98224757,124.47,124.46,22.68986579]
[1741881832393,9.98224757,124.47,124.46,343.00888893]
[1741881832889,9.97941335,124.47,124.46,343.00888893]
[1741881834714,28.00819283,124.47,124.46,312.28432314]
[1741881834918,28.00819283,124.47,124.46,334.97418893]
[1741881835417,28.00819283,124.47,124.46,343.00888893]
[1741881836319,15.55998745,124.47,124.46,343.00888893]
[1741881836660,8.0315,124.51,124.47,0.28432314]
[1741881836817,8.0315,124.51,124.48,22.68986579]
[1741881837215,8.0938,124.52,124.48,22.68986579]
[1741881837602,7.6625438,124.5,124.48,22.68986579]
[1741881837916,12.45163367,124.5,124.48,22.68986579]
[1741881838215,12.45163367,124.5,124.47,22.97418893]
[1741881838598,12.45163367,124.5,124.46,22.83202736]
[1741881838798,4.78908987,124.49,124.46,22.83202736]
[1741881838998,4.78908987,124.49,124.47,22.68986579]
[1741881839509,20.35061323,124.49,124.47,22.68986579]
[1741881840428,4.78908987,124.48,124.47,22.68986579]
[1741881840613,4.78908987,124.48,124.47,30.72386579]
[1741881840795,4.78908987,124.48,124.47,31.00818893]
[1741881841300,1.323e-05,124.48,124.47,31.00818893]
[1741881841498,9.97533549,124.51,124.5,20.0]
[1741881841699,9.97533549,124.51,124.5,73.39973158]
[1741881841912,9.97533549,124.51,124.5,50.70986579]
[1741881842304,0.063,124.52,124.5,50.85202736]
[1741881842504,0.063,124.52,124.51,22.68986579]
[1741881844418,0.063,124.52,124.51,30.72126579]
[1741881844723,0.063,124.52,124.51,334.68986579]
[1741881844911,0.063,124.52,124.51,342.72126579]
[1741881845425,0.063,124.52,124.51,343.00558893]
[1741881845628,0.063,124.52,124.51,334.97418893]
[1741881845827,0.063,124.52,124.51,334.68986579]
[1741881846516,0.063,124.52,124.51,22.68986579]
[1741881848306,4.08670033,124.52,124.51,22.68986579]
[1741881848512,4.08670033,124.52,124.5,50.70986579]
[1741881848736,4.08670033,124.52,124.51,22.68986579]
[1741881849319,0.063,124.52,124.51,22.68986579]
[1741881849517,0.063,124.52,124.5,340.02]
[1741881849741,0.063,124.52,124.5,362.70986579]
[1741881850034,0.063,124.52,124.5,50.70986579]
[1741881850438,0.063,124.52,124.5,58.74176579]
[1741881850736,0.063,124.52,124.51,22.68986579]
[1741881850913,0.063,124.52,124.5,50.70986579]
[1741881851415,0.063,124.52,124.5,58.74176579]
[1741881852131,7.66501271,124.51,124.5,58.74176579]
[1741881852546,7.66501271,124.51,124.5,59.02608893]
[1741881853035,17.24798847,124.51,124.5,371.02608893]
[1741881853337,9.58297576,124.51,124.5,371.02608893]
[1741881854529,5.98925239,124.51,124.5,371.02608893]
[1741881854839,10.78026214,124.51,124.5,371.02608893]
[1741881856016,10.78026214,124.51,124.5,59.02608893]
[1741881856231,18.44493413,124.51,124.5,59.02608893]
[1741881856624,18.44493413,124.51,124.5,8.02]
[1741881856822,18.44493413,124.51,124.47,0.03]
[1741881857048,62.76727354,124.51,124.47,0.03]
[1741881857526,43.29684959,124.51,124.47,30.75376579]
[1741881857715,43.29684959,124.51,124.47,22.71986579]
[1741881858242,9.97637169,124.49,124.47,22.71986579]
[1741881858809,9.97637169,124.49,124.47,30.75386579]
[1741881859338,9.57731682,124.48,124.47,30.75386579]
[1741881860044,9.57731682,124.48,124.47,22.71986579]
[1741881860541,14.36832657,124.48,124.47,22.71986579]
[1741881860741,14.36832657,124.48,124.47,30.75386579]
[1741881861040,14.36832657,124.48,124.47,22.71986579]
[1741881861530,14.36832657,124.48,124.47,30.75386579]
[1741881861729,18.39301702,124.48,124.47,30.75386579]
[1741881862043,26.0572614,124.48,124.47,31.03818893]
[1741881862852,22.03257095,124.48,124.47,31.03818893]
[1741881863641,14.36832657,124.48,124.47,31.03818893]
[1741881864635,18.39272664,124.48,124.47,31.03818893]
[1741881865419,13.60171689,124.48,124.47,31.03818893]
[1741881866230,13.60171689,124.48,124.47,343.03818893]
[1741881866428,0.063,124.52,124.48,0.28432314]
[1741881866614,0.063,124.52,124.49,22.68986579]
[1741881867639,8.0938,124.52,124.49,0.03]
[1741881868014,9.5717925,124.51,124.49,0.03]
[1741881868625,12.4428103,124.5,124.49,0.03]
[1741881869338,22.0146028,124.5,124.49,0.03]
[1741881870631,30.0467028,124.5,124.49,0.03]
[1741881870833,58.72167534,124.5,124.49,0.03]
[1741881872237,77.3713242,124.5,124.49,0.03]
[1741881873450,77.3713242,124.5,124.47,0.03]
[1741881873451,58.72167534,124.5,124.47,0.03]
[1741881873950,22.68986579,124.49,124.47,0.03]
[1741881874125,58.72167534,124.5,124.47,0.03]
[1741881874324,22.68986579,124.49,124.47,0.03]
[1741881874519,43.11254026,124.49,124.47,0.03]
[1741881874726,9.97599061,124.48,124.47,0.03]
[1741881875854,27.99970955,124.48,124.47,0.03]
[1741881877056,50.68957534,124.48,124.47,0.03]
[1741881877432,27.99970955,124.48,124.47,0.03]
[1741881879348,36.03310955,124.48,124.47,0.03]
[1741881879547,27.99970955,124.48,124.47,0.03]
[1741881880428,35.97957372,124.48,124.47,0.03]
[1741881880959,45.94898214,124.48,124.47,0.03]
[1741881881860,25.52630767,124.48,124.47,0.03]
[1741881882066,22.56402613,124.49,124.47,0.03]
[1741881882251,18.64964886,124.49,124.47,0.03]
[1741881882867,41.21347499,124.49,124.47,0.03]
[1741881883043,26.68244886,124.49,124.47,0.03]
[1741881883448,18.64964886,124.49,124.47,0.03]
[1741881883656,0.063,124.5,124.47,0.03]
[1741881883963,14.59402613,124.5,124.47,0.03]
[1741881884166,22.62622613,124.5,124.47,0.03]
[1741881884363,33.18067499,124.49,124.47,0.03]
[1741881884664,26.68254886,124.49,124.47,0.03]
[1741881885271,18.64964886,124.49,124.47,0.03]
[1741881885566,26.68254886,124.49,124.47,0.03]
[1741881886668,18.64964886,124.49,124.47,0.03]
[1741881887466,26.68244886,124.49,124.47,0.03]
[1741881889844,22.62632613,124.5,124.47,0.03]
[1741881891872,8.0953,124.5,124.47,0.03]
[1741881892951,22.62632613,124.5,124.47,0.03]
[1741881893158,12.46078302,124.48,124.47,0.03]
[1741881893348,16.48621702,124.48,124.47,0.03]
[1741881893560,36.08947317,124.48,124.46,0.03]
[1741881894465,4.79260885,124.47,124.46,0.03]
[1741881894869,18.80526793,124.47,124.46,0.03]
[1741881895651,48.3966069,124.47,124.46,0.03]
[1741881896457,34.38394782,124.47,124.46,0.03]
[1741881898576,24.395865,124.47,124.46,0.03]
[1741881899674,28.42126214,124.47,124.46,0.03]
[1741881899973,36.09022147,124.47,124.46,0.03]
[1741881901853,36.09022147,124.47,124.46,0.00282036]
[1741881903683,69.27089646,124.47,124.46,0.00282036]
[1741881903976,85.03209646,124.47,124.46,0.00282036]
[1741881905669,18.64964886,124.46,124.4,14.53102613]
[1741881905851,18.64964886,124.44,124.4,14.53102613]
[1741881906049,77.61490771,124.47,124.41,14.53102613]
[1741881906254,69.88770771,124.47,124.44,14.53102613]
[1741881906454,37.5777011,124.45,124.44,22.53102613]
[1741881907487,19.60324943,124.45,124.44,22.53102613]
[1741881907984,19.60324943,124.45,124.44,30.56702613]
[1741881908292,19.60324943,124.45,124.44,22.53102613]
[1741881908678,24.39585828,124.45,124.44,8.0]
[1741881908873,24.39585828,124.45,124.44,30.56702613]
[1741881908874,20.37046114,124.45,124.44,30.56702613]
[1741881909186,20.37046114,124.45,124.44,22.53102613]
[1741881909992,20.37046114,124.45,124.44,8.0]
[1741881910569,20.37046114,124.45,124.4,14.53102613]
[1741881910570,61.58643613,124.45,124.4,14.53102613]
[1741881910787,14.53102613,124.42,124.39,0.03]
[1741881910991,14.53102613,124.41,124.39,0.03]
[1741881911294,14.53102613,124.42,124.39,0.03]
[1741881911494,9.99705219,124.4,124.39,0.03]
[1741881911792,14.02469212,124.4,124.39,0.03]
[1741881912174,40.71284098,124.4,124.39,0.03]
[1741881913092,79.02618885,124.4,124.39,0.03]
[1741881913273,69.02913666,124.4,124.39,0.03]
[1741881913692,81.82224551,124.4,124.39,0.03]
[1741881913879,82.10656865,124.4,124.39,0.0001]
[1741881914389,22.73549558,124.37,124.36,0.03]
[1741881915194,27.52810443,124.37,124.36,0.03]
[1741881915400,46.17775329,124.37,124.36,0.03]
[1741881915602,50.20539322,124.37,124.36,0.03]
[1741881916377,73.82374551,124.37,124.36,0.03]
[1741881917276,74.10806865,124.37,124.36,0.03]
[1741881917804,1.5653,124.36,124.34,0.03]
[1741881917980,48.01456758,124.35,124.34,0.03]
[1741881918381,52.04220751,124.35,124.34,0.03]
[1741881919301,82.32532797,124.35,124.34,0.03]
[1741881919499,90.36712797,124.35,124.34,0.03]
[1741881920185,90.36712797,124.35,124.33,0.03]
[1741881920186,18.933972,124.34,124.33,0.03]
[1741881920391,41.66946758,124.34,124.33,0.03]
[1741881920902,45.69710751,124.34,124.33,0.03]
[1741881921312,66.06756865,124.34,124.33,0.03]
[1741881921699,73.82564551,124.34,124.33,0.03]
[1741881922794,83.69969636,124.34,124.33,0.03]
[1741881923716,75.65729636,124.34,124.33,0.03]
[1741881923907,70.86468751,124.34,124.33,0.03]
[1741881924208,78.90708751,124.34,124.33,0.03]
[1741881924607,70.86468751,124.34,124.33,0.03]
[1741881924802,78.90708751,124.34,124.33,0.03]
[1741881925912,69.03303666,124.34,124.33,0.03]
[1741881926097,60.99063666,124.34,124.33,0.03]
[1741881926408,45.41278437,124.34,124.33,0.03]
[1741881926589,41.38514444,124.34,124.33,0.03]
[1741881926797,49.42754444,124.34,124.33,0.03]
[1741881927691,53.45842244,124.34,124.33,0.03]
[1741881927892,82.666781,124.34,124.33,0.03]
[1741881929106,82.95110414,124.34,124.33,0.03]
[1741881929290,38.933972,124.32,124.31,0.03]
[1741881929496,84.40496316,124.32,124.31,0.03]
[1741881929806,61.38514444,124.32,124.31,0.03]
[1741881930007,84.12064002,124.32,124.31,0.03]
[1741881930198,84.40496316,124.32,124.31,0.03]
[1741881930398,98.26959795,124.32,124.31,0.03]
[1741881930605,106.31329795,124.32,124.31,0.03]
[1741881931191,125.68670384,124.32,124.31,0.03]
[1741881932009,115.85294705,124.32,124.31,0.03]
[1741881933606,92.83312833,124.32,124.31,0.03]
[1741881933913,115.56862391,124.32,124.31,0.03]
[1741881934296,143.27353284,124.32,124.31,0.0001]
[1741881935310,38.64964886,124.29,124.28,0.03]
[1741881935516,61.55788739,124.29,124.28,0.03]
[1741881935816,61.27356425,124.29,124.28,0.03]
[1741881936191,90.45350968,124.29,124.28,0.03]
[1741881936415,104.29071557,124.29,124.28,0.03]
[1741881936619,84.29071557,124.29,124.28,0.03]
[1741881936918,43.01715132,124.29,124.28,14.60831539]
[1741881937095,43.01715132,124.29,124.28,0.03]
[1741881937690,29.17973205,124.29,124.28,0.03]
[1741881938090,15.34252616,124.29,124.28,0.03]
[1741881938915,18.64964886,124.3,124.28,0.03]
[1741881939231,22.77115868,124.31,124.28,0.03]
[1741881940015,30.81555868,124.31,124.28,0.03]
[1741881940213,41.42080754,124.3,124.28,0.03]
[1741881940431,18.64964886,124.3,124.28,0.03]
[1741881940612,6.62942314,124.35,124.28,0.03]
[1741881940924,18.64964886,124.31,124.28,0.03]
[1741881941301,22.77115868,124.3,124.28,0.03]
[1741881941625,18.64964886,124.32,124.28,22.80115868]
[1741881942222,18.64964886,124.32,124.28,30.84685868]
[1741881942916,18.64964886,124.32,124.28,8.0757]
[1741881943426,49.46460754,124.32,124.28,0.03]
[1741881945231,22.77115868,124.31,124.28,0.03]
[1741881946435,30.81495868,124.32,124.28,0.03]
[1741881946606,30.81495868,124.32,124.28,312.03]
[1741881947216,30.81495868,124.32,124.28,320.0763]
[1741881947432,30.81495868,124.32,124.28,321.6227]
[1741881948311,30.81495868,124.32,124.28,313.5764]
[1741881948837,30.81495868,124.32,124.28,1.5764]
[1741881949041,22.77115868,124.34,124.29,22.77115868]
[1741881950233,22.77115868,124.34,124.3,8.045]
[1741881950838,30.81365868,124.34,124.3,8.045]
[1741881951131,8.1055,124.34,124.29,0.03]
[1741881951317,22.77115868,124.32,124.29,0.03]
[1741881951946,41.42080754,124.33,124.29,0.03]
[1741881952327,49.46430754,124.33,124.29,0.03]
[1741881953147,4.74509196,124.32,124.29,0.03]
[1741881954124,18.64964886,124.33,124.29,0.03]
[1741881954421,18.64964886,124.33,124.29,22.80115868]
[1741881954740,49.46390754,124.33,124.29,0.03]
[1741881955235,28.72031663,124.32,124.29,0.03]
[1741881955623,36.76431663,124.32,124.29,0.03]
[1741881956619,5.94915795,124.31,124.29,0.03]
[1741881957120,10.72036057,124.31,124.29,0.03]
[1741881958127,5.94915795,124.3,124.29,0.03]
[1741881958333,10.72036057,124.3,124.29,0.03]
[1741881960354,33.33876474,124.3,124.29,0.03]
[1741881960636,18.76536057,124.3,124.29,0.03]
[1741881960836,10.72036057,124.3,124.29,0.03]
[1741881961135,25.29376474,124.3,124.29,0.03]
[1741881961343,18.76536057,124.3,124.29,0.03]
[1741881961745,10.72036057,124.3,124.29,0.03]
[1741881963349,25.29376474,124.3,124.29,0.03]
[1741881963523,10.72036057,124.3,124.29,0.03]
[1741881964351,37.41500943,124.3,124.29,0.03]
[1741881964516,51.9884136,124.3,124.29,0.03]
[1741881964720,37.41500943,124.3,124.29,0.03]
[1741881964922,10.72036057,124.3,124.29,0.03]
[1741881965848,10.72036057,124.3,124.29,14.60340417]
[1741881966224,10.72036057,124.3,124.29,0.03]
[1741881966625,4.77120262,124.3,124.29,0.03]
[1741881967051,4.77120262,124.3,124.29,22.64900417]
[1741881967349,4.77120262,124.3,124.29,0.03]
[1741881968850,12.81620262,124.3,124.29,0.03]
[1741881969232,46.03925565,124.3,124.29,0.03]
[1741881970830,23.42085148,124.3,124.29,0.03]
[1741881972157,31.46585148,124.3,124.29,0.03]
[1741881972454,46.03925565,124.3,124.29,0.03]
[1741881974829,4.77120262,124.3,124.29,0.03]
[1741881975035,12.81620262,124.3,124.29,0.03]
[1741881975234,31.46585148,124.3,124.29,0.03]
[1741881975437,4.77120262,124.3,124.29,0.03]
[1741881976566,12.81620262,124.3,124.29,0.03]
[1741881977633,27.38960679,124.3,124.29,0.03]
[1741881977963,4.77120262,124.3,124.29,0.03]
[1741881979030,46.03925565,124.3,124.29,0.03]
[1741881979647,33.22305303,124.29,124.28,0.03]
[1741881979960,41.26865303,124.29,124.28,0.03]
[1741881981349,46.03985565,124.29,124.28,0.03]
[1741881983060,4.77120262,124.29,124.28,0.03]
[1741881983264,12.81680262,124.29,124.28,0.03]
[1741881984071,27.39020679,124.29,124.28,0.03]
[1741881984373,46.03985565,124.29,124.28,0.03]
[1741881987664,46.03985565,124.29,124.28,0.0001]
[1741881990884,31.46645148,124.29,124.28,0.0001]
[1741881991387,12.81680262,124.29,124.28,0.0001]
[1741881992890,27.39020679,124.29,124.28,0.0001]
[1741881993978,12.81680262,124.29,124.28,0.0001]
[1741881994318,4.77120262,124.29,124.28,0.0001]
[1741881995265,27.39020679,124.29,124.28,0.0001]
[1741881997988,4.77120262,124.29,124.28,0.0001]
[1741881998568,12.81680262,124.29,124.28,0.0001]
[1741881999489,12.87980262,124.29,124.28,0.0001]
[1741882000291,46.10285565,124.29,124.28,0.0001]
[1741882001088,31.52945148,124.29,124.28,0.0001]
[1741882001385,46.10285565,124.29,124.28,0.0001]
[1741882001693,4.83420262,124.29,124.28,0.0001]
[1741882003092,46.10285565,124.29,124.28,0.0001]
[1741882005684,41.33165303,124.29,124.28,0.0001]
[1741882006664,46.1090095,124.29,124.28,0.0001]
[1741882007691,41.33165303,124.29,124.28,0.0001]
[1741882008387,31.5321052,124.29,124.28,0.0001]
[1741882008590,46.10550937,124.29,124.28,0.0001]
[1741882009769,18.64964886,124.24,124.23,0.03]
[1741882009965,14.57340417,124.24,124.23,0.03]
[1741882010787,19.34726051,124.24,124.23,0.03]
[1741882011493,27.39616051,124.24,124.23,0.03]
[1741882012290,46.04580937,124.24,124.23,0.03]
[1741882013290,37.99690937,124.24,124.23,0.03]
[1741882013672,46.04580937,124.24,124.23,0.03]
[1741882018406,52.94973251,124.24,124.23,0.03]
[1741882018592,20.490472,124.23,124.22,0.03]
[1741882018782,35.06387617,124.23,124.22,0.03]
[1741882019383,39.55340937,124.23,124.22,0.03]
[1741882019588,46.04640937,124.23,124.22,0.03]
[1741882020104,23.4235052,124.23,124.22,0.03]
[1741882020488,37.99690937,124.23,124.22,0.03]
[1741882020896,46.04640937,124.23,124.22,0.03]
[1741882022716,31.4730052,124.23,124.22,0.03]
[1741882022911,46.04640937,124.23,124.22,0.03]
[1741882024087,46.04640937,124.23,124.19,0.03]
[1741882024088,66.45463251,124.23,124.19,0.03]
[1741882024287,33.22305303,124.21,124.19,0.03]
[1741882025791,41.27385303,124.21,124.19,0.03]
[1741882026200,18.64964886,124.2,124.15,0.03]
[1741882026403,18.64964886,124.17,124.15,0.03]
[1741882026819,33.22305303,124.16,124.15,0.03]
[1741882027799,41.27715303,124.16,124.15,0.03]
[1741882028223,33.22305303,124.16,124.15,0.03]
[1741882028519,18.64964886,124.16,124.15,0.03]
[1741882028693,14.57340417,124.18,124.15,0.03]
[1741882028895,18.64964886,124.17,124.15,0.03]
[1741882029111,23.3991985,124.17,124.15,0.03]
[1741882029308,4.74954964,124.17,124.15,0.03]
[1741882029919,4.74954964,124.17,124.15,14.60340417]
[1741882030126,4.74954964,124.17,124.15,0.03]
[1741882030620,18.64964886,124.18,124.15,0.03]
[1741882031420,14.57340417,124.19,124.15,8.0844]
[1741882031600,18.64964886,124.22,124.16,14.57340417]
[1741882031801,22.62470417,124.21,124.15,32.30400417]
[1741882032002,33.22305303,124.2,124.15,32.30400417]
[1741882032200,18.64964886,124.2,124.16,14.57340417]
[1741882032395,14.57340417,124.21,124.16,14.57340417]
[1741882032613,33.22305303,124.22,124.17,14.57340417]
[1741882033725,41.27355303,124.22,124.17,22.62670417]
[1741882034022,14.57340417,124.21,124.16,14.57340417]
[1741882034214,18.64964886,124.2,124.16,14.57340417]
[1741882034719,14.57340417,124.2,124.15,24.24960417]
[1741882035425,14.57340417,124.21,124.16,14.57340417]
[1741882035724,22.62490417,124.2,124.15,24.24960417]
[1741882036109,22.62490417,124.2,124.15,32.30430417]
[1741882036311,22.62490417,124.2,124.15,24.24960417]
[1741882036525,33.22305303,124.19,124.15,9.6762]
[1741882036900,18.64964886,124.17,124.15,0.03]
[1741882037125,33.22305303,124.16,124.15,0.03]
[1741882037824,41.27715303,124.16,124.15,0.03]
[1741882038028,26.70374886,124.16,124.15,0.03]
[1741882038199,41.27715303,124.16,124.15,0.03]
[1741882039023,41.27715303,124.16,124.15,0.0001]
[1741882039208,20.0,124.12,124.09,0.03]
[1741882039412,33.22305303,124.1,124.09,0.03]
[1741882039905,41.28105303,124.1,124.09,0.03]
[1741882040100,41.56537617,124.1,124.09,0.03]
[1741882040300,38.64964886,124.05,124.02,0.03]
[1741882040525,14.57340417,124.03,124.02,0.03]
[1741882040722,33.22305303,124.03,124.02,0.03]
[1741882041227,18.64964886,124.03,124.02,0.03]
[1741882042209,33.22305303,124.03,124.02,0.03]
[1741882042409,41.52439483,124.03,124.02,0.03]
[1741882042924,18.64964886,124.03,124.02,0.03]
[1741882044730,7.98,124.06,124.0,22.87474597]
[1741882044731,22.87474597,124.05,124.0,22.87474597]
[1741882044932,18.64964886,124.05,124.01,22.87474597]
[1741882045823,22.87474597,124.08,124.03,22.87474597]
[1741882046007,18.64964886,124.07,124.03,22.87474597]
[1741882046208,41.52439483,124.07,124.02,22.87474597]
[1741882046610,41.52439483,124.07,124.02,22.90474597]
[1741882048125,41.52439483,124.07,124.03,8.0625]
[1741882048319,41.52439483,124.07,124.02,8.0931]
[1741882048723,41.52439483,124.07,124.02,30.96784597]
[1741882049038,41.52439483,124.05,124.02,0.03]
[1741882049212,41.52439483,124.05,124.02,8.0931]
[1741882049938,41.52439483,124.05,124.02,0.03]
[1741882050232,18.64964886,124.05,124.02,0.03]
[1741882052417,22.87474597,124.07,124.02,22.90474597]
[1741882052619,18.64964886,124.06,124.02,22.90474597]
[1741882053033,18.64964886,124.07,124.02,22.90474597]
[1741882053242,6.58486157,124.12,124.04,22.87474597]
[1741882053420,22.87474597,124.1,124.04,22.87474597]
[1741882053931,18.64964886,124.08,124.04,22.87474597]
[1741882054144,18.64964886,124.11,124.06,22.87474597]
[1741882054321,22.87474597,124.1,124.05,30.93594597]
[1741882054637,22.87474597,124.12,124.07,22.87474597]
[1741882054935,18.64964886,124.11,124.07,22.87474597]
[1741882056043,18.64964886,124.1,124.06,30.93524597]
[1741882057249,18.64964886,124.11,124.06,30.93524597]
[1741882057540,18.64964886,124.11,124.08,22.87474597]
[1741882058642,18.64964886,124.11,124.08,30.93394597]
[1741882059135,14.0552,124.15,124.09,22.87474597]
[1741882059455,18.64964886,124.14,124.1,22.87474597]
[1741882059617,18.64964886,124.16,124.11,22.87474597]
[1741882059821,49.57859483,124.16,124.1,22.87474597]
[1741882060218,49.57859483,124.16,124.11,22.87474597]
[1741882060638,41.52439483,124.16,124.11,22.87474597]
[1741882061040,49.57859483,124.16,124.11,22.87474597]
[1741882061747,49.57859483,124.16,124.08,371.06214597]
[1741882061748,18.64964886,124.17,124.12,22.87474597]
[1741882062041,41.52439483,124.17,124.12,22.87474597]
[1741882062431,41.52439483,124.17,124.12,30.93134597]
[1741882062630,49.57789483,124.17,124.12,30.93134597]
[1741882062929,49.57789483,124.17,124.11,30.93174597]
[1741882063246,18.64964886,124.15,124.11,22.87474597]
[1741882063445,18.64964886,124.15,124.1,8.0577]
[1741882063646,18.64964886,124.15,124.11,22.87474597]
[1741882064244,49.57949483,124.15,124.1,22.87474597]
[1741882064647,18.64964886,124.12,124.07,16.0396]
[1741882064819,41.52439483,124.13,124.07,38.91434597]
[1741882065014,41.52439483,124.13,124.08,22.87474597]
[1741882065221,18.64964886,124.14,124.08,22.87474597]
[1741882065421,41.52439483,124.12,124.07,22.87474597]
[1741882065628,41.52439483,124.09,124.04,7.98]
[1741882065938,41.52439483,124.09,124.04,30.85474597]
[1741882066122,41.52439483,124.09,124.04,7.98]
[1741882066323,18.64964886,124.07,124.04,7.98]
[1741882067017,18.64964886,124.05,124.02,0.03]
[1741882068149,41.52439483,124.07,124.02,0.03]
[1741882068348,41.52439483,124.05,124.02,0.03]
[1741882068936,22.87474597,124.03,124.02,0.03]
[1741882069821,25.06314886,124.05,124.02,0.03]
[1741882069822,22.87474597,124.04,124.02,0.03]
[1741882071250,18.64964886,124.05,124.02,0.03]
[1741882072447,18.64964886,124.03,124.02,0.03]
[1741882072748,41.52439483,124.03,124.02,0.03]
[1741882073945,18.64964886,124.03,124.02,0.03]
[1741882074126,0.28432314,124.08,124.02,0.03]
[1741882074327,41.80871797,124.03,124.02,0.03]
[1741882074751,43.46931797,124.03,124.02,0.03]
[1741882075053,18.64964886,124.02,123.95,22.87474597]
[1741882075253,18.64964886,123.98,123.94,22.87474597]
[1741882075642,18.64964886,124.0,123.95,22.87474597]
[1741882075842,18.64964886,123.99,123.94,22.87474597]
[1741882076042,18.64964886,123.99,123.95,22.87474597]
[1741882076448,18.64964886,124.0,123.96,22.87474597]
[1741882076647,41.52439483,124.0,123.95,22.87474597]
[1741882076953,18.64964886,124.0,123.95,22.87474597]
[1741882077358,18.64964886,123.99,123.95,22.87474597]
[1741882077530,18.64964886,123.99,123.95,30.94244597]
[1741882078926,18.64964886,123.99,123.95,22.87474597]
[1741882079342,18.64964886,123.98,123.94,38.92284597]
[1741882079540,18.64964886,123.98,123.95,22.87474597]
[1741882079845,49.58889483,124.0,123.95,22.87474597]
[1741882080043,18.64964886,124.0,123.96,22.87474597]
[1741882080356,18.64964886,124.02,123.99,22.87474597]
[1741882080540,16.1892,124.06,123.99,22.87474597]
[1741882081061,16.1892,124.06,123.97,0.14216157]
[1741882081062,41.52439483,124.05,124.0,22.87474597]
[1741882081246,18.64964886,124.03,123.99,22.87474597]
[1741882081655,22.87474597,124.05,124.0,22.87474597]
[1741882081853,22.87474597,124.05,124.01,22.87474597]
[1741882081854,18.64964886,124.05,124.01,22.87474597]
[1741882082153,18.64964886,124.05,124.02,22.87474597]
[1741882082356,4.74317704,124.04,123.99,16.0449]
[1741882082553,4.74317704,124.04,124.01,22.87474597]
[1741882082955,4.74317704,124.04,124.03,22.87474597]
[1741882083258,4.74317704,124.04,124.0,0.28432314]
[1741882083560,41.52439483,124.07,124.02,22.87474597]
[1741882083857,26.70974886,124.07,124.03,22.87474597]
[1741882084161,49.58449483,124.07,124.02,30.93784597]
[1741882084458,49.58449483,124.07,124.02,22.87474597]
[1741882085042,49.58449483,124.07,124.01,22.87474597]
[1741882085043,18.64964886,124.05,124.01,22.87474597]
[1741882085756,26.71134886,124.05,124.01,22.87474597]
[1741882086260,18.64964886,124.05,124.02,22.87474597]
[1741882086464,30.93494597,124.07,124.02,22.87474597]
[1741882086760,41.52439483,124.06,124.01,22.87474597]
[1741882086957,18.64964886,124.06,124.0,22.87474597]
[1741882087134,41.52439483,124.04,123.99,30.96954597]
[1741882087335,41.52439483,124.04,123.99,38.94954597]
[1741882087539,22.87474597,124.05,123.99,38.94954597]
[1741882087745,18.64964886,124.04,123.99,16.0748]
[1741882088041,18.64964886,124.04,124.0,30.93924597]
[1741882088242,22.87474597,124.06,124.01,22.87474597]
[1741882088447,18.64964886,124.05,124.01,22.87474597]
[1741882089048,22.87474597,124.07,124.02,22.87474597]
[1741882089243,18.64964886,124.06,124.02,22.87474597]
[1741882089550,18.64964886,124.05,124.01,22.87474597]
[1741882089955,26.71104886,124.05,124.01,22.87474597]
[1741882090250,26.71104886,124.05,123.99,16.0749]
[1741882090457,49.58579483,124.05,123.99,16.0749]
[1741882090665,49.58579483,124.05,124.0,22.87474597]
[1741882090961,41.52439483,124.03,123.99,0.03]
[1741882091160,18.64964886,124.0,123.99,0.03]
[1741882091546,7.8296,124.03,123.99,0.03]
[1741882091744,18.64964886,124.01,123.99,0.03]
[1741882092555,26.71344886,124.01,123.99,0.03]
[1741882092757,49.58819483,124.01,123.99,0.03]
[1741882094166,22.87474597,124.0,123.99,0.03]
[1741882095459,18.64964886,124.02,123.99,0.03]
[1741882095665,41.52439483,124.0,123.99,0.03]
[1741882095869,18.64964886,124.0,123.99,0.03]
[1741882096070,26.71414886,124.0,123.99,0.03]